fUSD/lending_fUSD_20240122
["ID","MTS","AMOUNT","RATE_DAILY","PERIOD"]
[312455990,1705897837932,-856.56,0.00021375,2]
[312455991,1705897837941,-500.0,0.00021399,2]
[312455992,1705897837951,-624.31,0.00021431,2]
[312455993,1705897837959,-173.88,0.00021522,2]
[312455994,1705897837968,-161.02,0.00021575,2]
[312455995,1705897837977,-481.67,0.00021733,2]
[312455996,1705897837987,-173.88,0.00021747,2]
[312455997,1705897837997,-155.50099623,0.00021847,2]
[312455998,1705897838006,-420.5726,0.00021847,2]
[312455999,1705897838016,-459.99,0.00021858,2]
[312456000,1705897838025,-150.99,0.00021889,2]
[312456001,1705897838035,-250.0,0.00021918,2]
[312456002,1705897838044,-173.88,0.00021971,2]
[312456003,1705897838053,-161.46,0.00021996,2]
[312456004,1705897838062,-176.43,0.00022,2]
[312456005,1705897838071,-1382.17354182,0.00022077,3]
[312456006,1705897838080,-624.95963778,0.00022077,2]
[312456007,1705897838090,-1365.6581161,0.00022077,2]
[312456008,1705897838099,-211.0,0.00022098,2]
[312456009,1705897838108,-173.88,0.00022195,2]
[312456010,1705897838119,-1221.12,0.00022348,2]
[312456011,1705897838128,-161.02,0.00022387,2]
[312456012,1705897838137,-173.88,0.00022419,2]
[312456013,1705897838147,-150.0,0.00022498,2]
[312456014,1705897838156,-315.58254196,0.00022548,2]
[312456015,1705897838166,-835.56626242,0.000226,2]
[312456016,1705897838175,-173.88,0.00022644,2]
[312456017,1705897838184,-16787.24945232,0.000227,2]
[312456018,1705897838196,-1257.62574768,0.000227,2]
[312456019,1705897838206,-11173.78695988,0.000227,2]
[312456020,1705897838215,-5353.645,0.000227,2]
[312456021,1705897838224,-5506.31173706,0.0002277,2]
[312456022,1705897838234,-5902.41554339,0.000228,2]
[312456023,1705897838247,-941.47635661,0.000228,2]
[312456024,1705897838256,-36995.11132343,0.000228,2]
[312456025,1705897838279,-6988.62956449,0.000228,2]
[312456027,1705897838288,-800.0,0.00022815,2]
[312456028,1705897838298,-200.0,0.00022816,2]
[312456030,1705897838307,-800.0,0.00022816,2]
[312456032,1705897838318,-1386.93677718,0.0002289,2]
[312456036,1705897838343,-6724.85455948,0.0002289,2]
[312456038,1705897838356,-3643.20068629,0.0002289,2]
[312456041,1705897838371,-592.85524428,0.0002289,2]
[312456045,1705897838390,-944.66841839,0.0002289,2]
[312456049,1705897838402,-643.08479251,0.0002289,2]
[312456052,1705897838413,-1007.38297438,0.0002289,2]
[312456058,1705897838439,-410.17314583,0.0002289,2]
[312456210,1705897839894,-3276.87080573,0.0002289,2]
[312456223,1705897840004,-1798.36029792,0.0002289,2]
[312456279,1705897840680,-1792.98406815,0.0002289,2]
[312456504,1705897842734,-822.29078517,0.0002289,2]
[312456507,1705897842758,-378.84759422,0.0002289,2]
[312456509,1705897842771,-2352.95939332,0.0002289,2]
[312456513,1705897842794,-1145.80337591,0.0002289,2]
[312456516,1705897842813,-1251.92970424,0.0002289,2]
[312456518,1705897842824,-4407.456877,0.0002289,2]
[312456520,1705897842834,-2541.07600647,0.000229,2]
[312456522,1705897842843,-805.58489057,0.000229,2]
[312456525,1705897842862,-3123.32666204,0.000229,2]
[312456528,1705897842873,-2154.56306692,0.000229,2]
[312456530,1705897842882,-154.6732655,0.000229,2]
[312456532,1705897842891,-3764.21865438,0.000229,2]
[312456550,1705897843053,-1235.78134562,0.000229,2]
[312456552,1705897843062,-178.03401367,0.000229,2]
[312456554,1705897843071,-2353.28952252,0.00022983,3]
[312456556,1705897843082,-672.27438761,0.00022983,3]
[312456558,1705897843091,-403.12572518,0.00022997,2]
[312456560,1705897843101,-625.88696389,0.00022997,2]
[312456563,1705897843112,-577.68695004,0.00022997,2]
[312456568,1705897843150,-6579.20272933,0.00022997,2]
[312456570,1705897843159,-10585.57629208,0.00022997,2]
[312456571,1705897843168,-4654.48491111,0.00022997,2]
[312456572,1705897843178,-10019.84075103,0.00022997,2]
[312456573,1705897843189,-1085.42,0.00022997,2]
[312456830,1705897845683,-161.17660137,0.00022996,2]
[312456832,1705897845692,-102.18625052,0.00022997,2]
[312456835,1705897845707,-754.27983497,0.00022997,2]
[312456837,1705897845719,-2305.90476731,0.00022997,2]
[312456839,1705897845729,-6355.5503431,0.00022997,2]
[312456841,1705897845737,-8249.59356204,0.00022997,2]
[312456843,1705897845749,-7879.30212077,0.00022997,2]
[312456847,1705897845776,-616.94211156,0.00022997,2]
[312457968,1705898674226,210.0,0.00019098,2]
[312457970,1705898778899,-370.75565312,0.00019971,2]
[312457971,1705898867622,4629.94558808,0.00019971,2]
[312457972,1705898914138,370.75565312,0.00019971,2]
[312457976,1705898994629,521.33,0.00019852,2]
[312458019,1705899031619,-205.63566737,0.00021681,2]
[312458022,1705899031629,-303.45,0.00021734,2]
[312458024,1705899031639,-441.09,0.00021781,2]
[312458027,1705899031649,-149.3928969,0.00021801,2]
[312458031,1705899031661,-991.7871031,0.00021801,2]
[312458033,1705899031670,-732.67,0.00021801,2]
[312458036,1705899031679,-341.81537992,0.00021915,2]
[312458038,1705899031688,-311.36610206,0.00021915,2]
[312458041,1705899031698,-684.8067003,0.00021915,2]
[312458043,1705899031708,-446.48737761,0.00021915,2]
[312458045,1705899031720,-435.79844913,0.00021915,2]
[312458047,1705899031739,-17450.43648361,0.00021915,2]
[312458049,1705899031748,-154.25,0.00021916,2]
[312458050,1705899031757,-250.0,0.00021918,2]
[312458052,1705899031766,-150.0,0.00021945,2]
[312458053,1705899031775,-161.46,0.00021961,2]
[312458055,1705899031784,-150.0,0.0002197,2]
[312458056,1705899031794,-150.0,0.0002197,2]
[312458058,1705899031804,-904.40561789,0.0002197,2]
[312458059,1705899031813,-6579.20272933,0.00021971,2]
[312458061,1705899031822,-699.45,0.00021974,2]
[312458063,1705899031831,-156.14787353,0.00021979,2]
[312458064,1705899031840,-478.54,0.00022,2]
[312458066,1705899031849,-714.78,0.00022032,2]
[312458067,1705899031858,-3669.39,0.00022081,2]
[312458068,1705899031867,-521.33,0.00022116,2]
[312458069,1705899031876,-154.25,0.00022487,2]
[312458070,1705899031885,-161.61,0.00022539,2]
[312458071,1705899031895,-150.0,0.00022608,2]
[312458072,1705899031904,-150.0,0.00022655,2]
[312458073,1705899031914,-150.0,0.00022691,2]
[312458074,1705899031923,-150.0,0.00022695,2]
[312458075,1705899031932,-150.0,0.00022737,2]
[312458076,1705899031941,-150.0,0.0002274,2]
[312458078,1705899031950,-150.0,0.00022742,2]
[312458081,1705899031959,-150.0,0.00022745,2]
[312458084,1705899031969,-150.0,0.0002275,2]
[312458086,1705899031977,-150.0,0.00022751,2]
[312458088,1705899031986,-150.0,0.00022765,2]
[312458090,1705899031996,-150.0,0.00022769,2]
[312458092,1705899032006,-150.0,0.00022769,2]
[312458094,1705899032015,-150.0,0.00022771,2]
[312458096,1705899032024,-150.0,0.00022772,2]
[312458098,1705899032038,-150.0,0.00022781,2]
[312458100,1705899032048,-150.0,0.00022786,2]
[312458102,1705899032058,-150.0,0.00022786,2]
[312458105,1705899032067,-150.0,0.00022786,2]
[312458107,1705899032079,-150.0,0.00022786,2]
[312458109,1705899032092,-150.0,0.00022793,2]
[312458111,1705899032101,-150.0,0.00022793,2]
[312458113,1705899032110,-150.0,0.00022794,2]
[312458115,1705899032120,-150.0,0.00022797,2]
[312458117,1705899032129,-150.0,0.00022798,2]
[312458119,1705899032138,-400.0,0.000228,8]
[312458121,1705899032148,-150.0,0.00022802,2]
[312458123,1705899032158,-150.0,0.00022807,2]
[312458125,1705899032167,-150.0,0.00022809,2]
[312458127,1705899032176,-150.0,0.0002281,2]
[312458129,1705899032186,-200.0,0.00022815,2]
[312458131,1705899032195,-200.0,0.00022815,2]
[312458132,1705899032204,-200.0,0.00022816,2]
[312458135,1705899032213,-1007.8337684,0.00022816,3]
[312458136,1705899032222,-200.0,0.00022816,2]
[312458138,1705899032231,-200.0,0.00022816,2]
[312458141,1705899032245,-200.0,0.00022816,2]
[312458143,1705899032254,-200.0,0.00022816,2]
[312458145,1705899032264,-800.0,0.00022816,2]
[312458147,1705899032273,-200.0,0.00022816,2]
[312458149,1705899032282,-200.0,0.00022816,2]
[312458151,1705899032291,-150.0,0.00022831,2]
[312458153,1705899032300,-150.0,0.00022832,2]
[312458155,1705899032309,-150.0,0.00022834,2]
[312458157,1705899032318,-150.0,0.00022837,2]
[312458159,1705899032327,-150.0,0.00022841,2]
[312458160,1705899032337,-150.0,0.00022843,2]
[312458161,1705899032347,-150.0,0.00022852,2]
[312458162,1705899032356,-150.0,0.00022853,2]
[312458163,1705899032365,-150.0,0.00022855,2]
[312458164,1705899032375,-150.0,0.00022858,2]
[312458165,1705899032385,-150.0,0.00022868,2]
[312458166,1705899032394,-150.0,0.00022872,2]
[312458167,1705899032404,-150.0,0.00022886,2]
[312458168,1705899032414,-150.0,0.00022891,2]
[312458169,1705899032423,-732.67,0.00022891,2]
[312458170,1705899032433,-150.0,0.00022892,2]
[312458171,1705899032442,-150.0,0.00022893,2]
[312458172,1705899032451,-150.0,0.00022895,2]
[312458173,1705899032461,-150.0,0.00022895,2]
[312458174,1705899032470,-150.0,0.00022896,2]
[312458175,1705899032479,-150.0,0.00022896,2]
[312458176,1705899032489,-2064.7387,0.00022897,2]
[312458177,1705899032499,-4529.5142,0.000229,2]
[312458178,1705899032508,-178.03401367,0.000229,2]
[312458179,1705899032518,-685.49847304,0.000229,2]
[312458180,1705899032567,-1809.51341481,0.000229,2]
[312458182,1705899037727,-150.0,0.00022755,2]
[312458183,1705899037736,-150.0,0.00022756,2]
[312458184,1705899037746,-150.0,0.00022765,2]
[312458185,1705899037755,-150.0,0.00022767,2]
[312458186,1705899037765,-150.0,0.00022783,2]
[312458187,1705899037774,-150.0,0.00022817,2]
[312458188,1705899037783,-150.0,0.00022822,2]
[312458189,1705899037792,-150.0,0.00022826,2]
[312458190,1705899037801,-150.0,0.00022826,2]
[312458191,1705899037810,-150.0,0.00022832,2]
[312458192,1705899037820,-299.04818068,0.00022847,2]
[312458193,1705899037829,-150.0,0.00022854,2]
[312458194,1705899037838,-150.0,0.00022865,2]
[312458195,1705899037847,-150.0,0.00022872,2]
[312458196,1705899037857,-2504.98811215,0.000229,2]
[312458197,1705899037866,-2468.25340106,0.000229,2]
[312458198,1705899037876,-154.49779748,0.000229,2]
[312458199,1705899037884,-3333.83365033,0.000229,2]
[312458200,1705899037896,-2242.68475086,0.000229,2]
[312458201,1705899037905,-172.76578647,0.000229,2]
[312458202,1705899037915,-800.0,0.000229,8]
[312458203,1705899037924,-1525.66379073,0.00022902,2]
[312458204,1705899037934,-150.0,0.00022903,2]
[312458205,1705899037943,-150.0,0.00022908,2]
[312458206,1705899037952,-150.0,0.00022913,2]
[312458207,1705899037961,-150.0,0.00022916,2]
[312458208,1705899037971,-150.0,0.00022917,2]
[312458209,1705899037980,-150.0,0.00022923,2]
[312458210,1705899037990,-150.0,0.00022926,2]
[312458211,1705899038000,-150.0,0.00022935,2]
[312458212,1705899038010,-150.0,0.00022939,2]
[312458213,1705899038019,-150.0,0.00022943,2]
[312458214,1705899038028,-150.0,0.00022945,2]
[312458215,1705899038038,-150.0,0.00022953,2]
[312458216,1705899038046,-150.0,0.00022955,2]
[312458217,1705899038056,-150.0,0.00022957,2]
[312458218,1705899038066,-150.0,0.00022961,2]
[312458220,1705899038075,-150.0,0.00022968,2]
[312458222,1705899038089,-150.0,0.0002297,2]
[312458224,1705899038098,-150.0,0.00022972,2]
[312458226,1705899038108,-150.0,0.00022977,2]
[312458228,1705899038118,-150.0,0.00022984,2]
[312458230,1705899038127,-150.0,0.00022987,2]
[312458232,1705899038136,-150.0,0.00022989,2]
[312458234,1705899038145,-150.0,0.00022992,2]
[312458236,1705899038155,-333.26548687,0.00022994,2]
[312458238,1705899038164,-2334.83709054,0.00022995,3]
[312458240,1705899038174,-4786.5735641,0.00022995,2]
[312458242,1705899038183,-9693.30349536,0.00022995,2]
[312458245,1705899038205,-1091.0594006,0.00022995,2]
[312458247,1705899038218,-716.79,0.00022995,2]
[312458250,1705899038234,-643.1294748,0.00022995,2]
[312458263,1705899038344,-529.05901152,0.00022995,2]
[312458265,1705899038356,-5064.41763772,0.00022995,2]
[312458268,1705899038371,-5339.9240749,0.00022995,2]
[312458270,1705899038380,-2337.96612844,0.00022995,2]
[312458509,1705899040758,-4292.92981792,0.00022995,2]
[312458512,1705899040769,-272.65594049,0.00022995,2]
[312458518,1705899040815,-299.1128838,0.00022995,2]
[312458520,1705899040827,-312.76609887,0.00022995,2]
[312458527,1705899040884,-510.13070881,0.00022995,2]
[312458534,1705899040935,-21439.638,0.00022995,2]
[312458726,1705899042766,-150.0,0.00022735,2]
[312458728,1705899042775,-391.94845062,0.00022995,2]
[312458740,1705899042876,-500.0,0.00022995,2]
[312458759,1705899043041,-2105.55,0.00022995,2]
[312459093,1705899045950,-1239.75904694,0.00022995,2]
[312459097,1705899045961,-270.29000324,0.00022995,2]
[312459100,1705899045972,-9349.26390017,0.00022995,2]
[312459103,1705899045981,-7866.07875617,0.00022995,2]
[312459108,1705899046005,-357.38450003,0.00022995,2]
[312459111,1705899046017,-302.03380715,0.00022995,2]
[312459117,1705899046044,-590.53614384,0.00022995,2]
[312459820,1705899544702,533.1,0.0001984,2]
[312459842,1705900024374,506.44,0.00019774,2]
[312459909,1705900232514,-409.64,0.00019999,2]
[312459910,1705900232537,-324.36,0.00019999,2]
[312459911,1705900232547,-210.0,0.00020941,2]
[312459912,1705900232558,-205.63566735,0.00021548,2]
[312459913,1705900232569,-205.63566735,0.00021643,2]
[312459914,1705900232580,-159.0399871,0.00021648,2]
[312459915,1705900232591,-1164.54,0.00021695,2]
[312459916,1705900232602,-275.34,0.00021695,2]
[312459917,1705900232613,-26.61189205,0.00021695,2]
[312459918,1705900232649,-280.0,0.00021695,2]
[312459919,1705900234480,-6.81810795,0.00021695,2]
[312459920,1705900234489,-194.08,0.00021706,2]
[312459921,1705900234499,-1114.39,0.00021706,2]
[312459922,1705900234513,-8939.71189204,0.00021707,2]
[312459923,1705900234528,-4089.0,0.00021707,2]
[312459924,1705900234539,-1024.34354417,0.00021707,2]
[312459925,1705900234581,-1939.33175022,0.00021707,2]
[312459926,1705900234594,-3025.14182422,0.00021707,2]
[312459927,1705900234604,-759.57,0.00021708,2]
[312459928,1705900234614,-472.71122559,0.00021741,2]
[312459929,1705900234623,-385.58915339,0.00021741,2]
[312459930,1705900234633,-439.6,0.00021742,2]
[312459931,1705900234643,-150.0,0.00021742,2]
[312459932,1705900234652,-557.90175667,0.00021746,2]
[312459933,1705900234662,-352.87,0.00021755,2]
[312459934,1705900234672,-155.08,0.00021871,2]
[312459935,1705900234681,-150.0,0.00021899,2]
[312459936,1705900234691,-250.0,0.00021918,2]
[312459937,1705900234700,-161.61,0.00021938,2]
[312459938,1705900234710,-161.56,0.0002203,2]
[312459939,1705900234720,-137.50868824,0.00022038,2]
[312459941,1705900234732,-368.93131176,0.00022038,2]
[312459943,1705900234741,-155.08,0.00022441,2]
[312459945,1705900234751,-219.90355198,0.00022447,2]
[312459947,1705900234760,-150.0,0.00022684,2]
[312459949,1705900234771,-150.0,0.00022694,2]
[312459951,1705900234780,-150.0,0.00022712,2]
[312459953,1705900234789,-150.0,0.00022717,2]
[312459955,1705900234800,-161.56,0.00022721,2]
[312459957,1705900234810,-150.0,0.00022729,2]
[312459960,1705900234819,-150.0,0.00022731,2]
[312459962,1705900234830,-150.0,0.00022735,2]
[312459964,1705900234839,-150.0,0.00022736,2]
[312459966,1705900234849,-150.0,0.00022742,2]
[312459968,1705900234858,-18.3991943,0.00022747,2]
[312459970,1705900234871,-131.6008057,0.00022747,2]
[312459972,1705900234880,-150.0,0.00022752,2]
[312459974,1705900234889,-150.0,0.0002276,2]
[312459976,1705900234899,-150.0,0.00022764,2]
[312459978,1705900234909,-150.0,0.00022776,2]
[312459980,1705900234918,-150.0,0.00022783,2]
[312459982,1705900234928,-159.0399871,0.00022785,2]
[312459984,1705900234938,-1114.39,0.00022792,2]
[312459986,1705900234947,-622.9973088,0.000228,3]
[312459988,1705900234959,-201.76756989,0.000228,3]
[312459990,1705900234968,-176.67337294,0.000228,8]
[312459994,1705900234992,-223.32662706,0.000228,8]
[312459996,1705900235002,-150.0,0.00022808,2]
[312459998,1705900235013,-150.0,0.00022809,2]
[312460000,1705900235028,-200.0,0.00022815,2]
[312460002,1705900235039,-200.0,0.00022815,2]
[312460004,1705900235048,-200.0,0.00022816,2]
[312460006,1705900235058,-200.0,0.00022816,2]
[312460008,1705900235067,-200.0,0.00022816,2]
[312460010,1705900235077,-200.0,0.00022816,2]
[312460011,1705900235086,-200.0,0.00022816,2]
[312460012,1705900235096,-129.97462294,0.00022816,2]
[312460020,1705900237848,-70.02537706,0.00022816,2]
[312460021,1705900237858,-800.0,0.00022816,2]
[312460022,1705900237867,-200.0,0.00022816,2]
[312460023,1705900237877,-215.00475011,0.00022829,2]
[312460024,1705900237888,-224.59524989,0.00022829,2]
[312460025,1705900237898,-150.0,0.00022831,2]
[312460026,1705900237907,-71.34794888,0.00022834,2]
[312460027,1705900237919,-78.65205112,0.00022834,2]
[312460028,1705900237928,-150.0,0.00022839,2]
[312460029,1705900237937,-150.0,0.00022843,2]
[312460030,1705900237947,-150.0,0.00022848,2]
[312460031,1705900237956,-150.0,0.0002286,2]
[312460032,1705900237965,-150.0,0.00022865,2]
[312460033,1705900237974,-150.0,0.00022875,2]
[312460034,1705900237983,-150.0,0.0002288,2]
[312460035,1705900237992,-150.0,0.00022883,2]
[312460036,1705900238001,-150.0,0.00022888,2]
[312460037,1705900238011,-837.14,0.00022895,2]
[312460038,1705900238022,-2036.4237,0.00022899,2]
[312460039,1705900238031,-1349.3539,0.00022899,2]
[312460040,1705900238040,-500.0,0.000229,2]
[312460041,1705900238050,-2380.6983,0.000229,2]
[312460042,1705900238059,-10000.0,0.000229,2]
[312460043,1705900238068,-5000.0,0.000229,2]
[312460044,1705900238077,-178.03401367,0.000229,2]
[312460045,1705900238087,-154.49779742,0.000229,2]
[312460046,1705900238097,-900.0,0.000229,8]
[312460047,1705900238106,-150.0,0.00022905,2]
[312460048,1705900238116,-150.0,0.0002291,2]
[312460049,1705900238125,-150.0,0.00022912,2]
[312460050,1705900238135,-150.0,0.00022915,2]
[312460051,1705900238144,-150.0,0.00022917,2]
[312460052,1705900238154,-150.0,0.00022927,2]
[312460053,1705900238163,-150.0,0.0002293,2]
[312460054,1705900238173,-150.0,0.00022945,2]
[312460055,1705900238183,-150.0,0.00022946,2]
[312460056,1705900238192,-150.0,0.00022959,2]
[312460057,1705900238202,-150.0,0.00022973,2]
[312460086,1705900238455,-226.69261519,0.0002299,2]
[312460089,1705900238480,-19537.64993233,0.00022992,2]
[312460091,1705900238489,-151.0122,0.00022992,2]
[312460093,1705900238499,-151.0122,0.00022992,2]
[312460095,1705900238512,-151.0122,0.00022992,2]
[312460096,1705900238523,-151.0122,0.00022992,2]
[312460098,1705900238532,-151.0122,0.00022992,2]
[312460100,1705900238541,-151.0122,0.00022992,2]
[312460102,1705900238550,-151.0122,0.00022992,2]
[312460104,1705900238560,-151.0122,0.00022992,2]
[312460106,1705900238569,-151.0122,0.00022992,2]
[312460108,1705900238578,-151.0122,0.00022992,2]
[312460110,1705900238589,-151.0122,0.00022992,2]
[312460112,1705900238599,-151.0122,0.00022992,2]
[312460115,1705900238609,-151.0122,0.00022992,2]
[312460116,1705900238618,-151.0122,0.00022992,2]
[312460118,1705900238627,-2622.43166733,0.00022993,2]
[312460121,1705900238641,-359.89799702,0.00022993,2]
[312460123,1705900238650,-529.18555788,0.00022993,2]
[312460125,1705900238659,-2274.4341,0.00022993,2]
[312460127,1705900238668,-204.01256151,0.00022993,2]
[312460129,1705900238678,-370.58249198,0.00022994,2]
[312460131,1705900238687,-1168.1199367,0.00022994,2]
[312460140,1705900238769,-685.8848328,0.00022994,2]
[312460142,1705900238779,-2000.0,0.00022995,2]
[312460144,1705900238789,-200.0,0.00022995,2]
[312460146,1705900238798,-151.0122,0.00022998,2]
[312460148,1705900238807,-151.0122,0.00022998,2]
[312460150,1705900238817,-151.0122,0.00022998,2]
[312460152,1705900238826,-151.0122,0.00022998,2]
[312460154,1705900238836,-151.0122,0.00022998,2]
[312460156,1705900238845,-151.0122,0.00022998,2]
[312460158,1705900238854,-151.0122,0.00022998,2]
[312460160,1705900238863,-151.0122,0.00022998,2]
[312460162,1705900238872,-151.0122,0.00022998,2]
[312460164,1705900238882,-151.0122,0.00022998,2]
[312460166,1705900238892,-151.0122,0.00022998,2]
[312460168,1705900238901,-151.0122,0.00022998,2]
[312460170,1705900238911,-174.75628115,0.00022999,2]
[312460172,1705900238920,-437.68598742,0.00022999,2]
[312460174,1705900238929,-510.93,0.00022999,2]
[312460176,1705900238938,-908.0,0.00023,2]
[312460178,1705900238947,-1455.6202451,0.00023,2]
[312460180,1705900238959,-423.356324,0.00023,2]
[312460183,1705900238974,-7156.4874822,0.00023,2]
[312460186,1705900238989,-367392.32715762,0.00023,2]
[312460190,1705900239021,-22321.59631398,0.00023,2]
[312460192,1705900239034,-4887.83082478,0.00023,2]
[312460277,1705900240387,-2481.3278554,0.00023,2]
[312460278,1705900240399,-12270.0,0.00023,2]
[312460279,1705900240410,-544.13000421,0.00023,2]
[312460280,1705900240422,-695.15939648,0.00023,2]
[312460281,1705900240471,-420742.64690992,0.00023,2]
[312460282,1705900240480,-237628.26072481,0.00023,2]
[312460283,1705900240489,-1915.82116,0.00023,2]
[312460284,1705900240498,-12812.14039425,0.00023,2]
[312460285,1705900241675,-9635.99999998,0.00023,2]
[312460286,1705900241686,-2624.06365033,0.00023,2]
[312460287,1705900241698,-321.84399996,0.00023,2]
[312460315,1705900242887,-372.29314953,0.00023,2]
[312460325,1705900242969,-36700.26647622,0.00023,2]
[312460327,1705900242979,-151.0,0.00023,7]
[312460329,1705900242988,-151.137413,0.00023,7]
[312460331,1705900242997,-151.0,0.00023,7]
[312460333,1705900243007,-151.0,0.00023,7]
[312460335,1705900243016,-151.0,0.00023,7]
[312460337,1705900243028,-338.735053,0.00023,7]
[312460339,1705900243038,-338.735053,0.00023,7]
[312460341,1705900243047,-338.735053,0.00023,7]
[312460343,1705900243056,-338.735053,0.00023,7]
[312460345,1705900243065,-151.0,0.00023,7]
[312460347,1705900243075,-151.0,0.00023,7]
[312460349,1705900243084,-151.0,0.00023,7]
[312460350,1705900243093,-151.0,0.00023,7]
[312460351,1705900243103,-160.187262,0.00023,7]
[312460352,1705900243112,-151.0,0.00023,7]
[312460353,1705900243121,-151.0,0.00023,7]
[312460354,1705900243131,-159.608886,0.00023,7]
[312460355,1705900243140,-943.769105,0.00023,7]
[312460356,1705900243150,-943.769105,0.00023,7]
[312460357,1705900243159,-151.0,0.00023,7]
[312460358,1705900243169,-151.0,0.00023,7]
[312460359,1705900243178,-155.550051,0.00023,7]
[312460360,1705900243187,-151.0,0.00023,7]
[312460361,1705900243197,-151.0,0.00023,7]
[312460362,1705900243206,-151.0,0.00023,7]
[312460363,1705900243216,-151.0,0.00023,7]
[312460364,1705900243226,-151.0,0.00023,7]
[312460365,1705900243235,-151.0,0.00023,7]
[312460366,1705900243244,-151.0,0.00023,7]
[312460367,1705900243254,-151.0,0.00023,7]
[312460368,1705900243263,-164.994229,0.00023,7]
[312460369,1705900243277,-164.994229,0.00023,7]
[312460370,1705900243286,-164.994229,0.00023,7]
[312460371,1705900243296,-164.994229,0.00023,7]
[312460372,1705900243305,-1522.802248,0.00023,2]
[312460373,1705900243315,-151.0,0.00023,7]
[312460374,1705900243324,-151.0,0.00023,7]
[312460375,1705900243334,-151.0,0.00023,7]
[312460376,1705900243343,-151.0,0.00023,7]
[312460377,1705900243352,-281.255921,0.00023,7]
[312460379,1705900243361,-164.87415,0.00023,7]
[312460381,1705900243371,-1004.33779352,0.00023003,4]
[312460383,1705900243381,-1783.1329139,0.00023008,2]
[312460385,1705900243391,-531.0785532,0.00023008,2]
[312460387,1705900243401,-29892.5543552,0.00023008,2]
[312460389,1705900243409,-11654.2183999,0.00023008,2]
[312460391,1705900243419,-155.08,0.0002301,2]
[312460393,1705900243428,-6858.3904252,0.00023024,2]
[312460395,1705900243437,-1422.508064,0.00023024,2]
[312460396,1705900243451,-160.297708,0.00023024,7]
[312460397,1705900243461,-151.0,0.00023024,7]
[312460398,1705900243471,-151.0,0.00023042,7]
[312460400,1705900243481,-218.804293,0.00023042,7]
[312460401,1705900243490,-933.266468,0.00023276,2]
[312460402,1705900243499,-1164.54,0.00023339,2]
[312460403,1705900243509,-161.56,0.00023412,2]
[312460404,1705900243523,-1114.39,0.00023877,2]
[312460405,1705900243532,-210.0,0.00023916,2]
[312460406,1705900243793,-439.6,0.00023916,2]
[312460407,1705900243811,-159.0399871,0.00023921,2]
[312460408,1705900243820,-201.27157051,0.00024,2]
[312460409,1705900243830,-161.46,0.00024026,2]
[312460410,1705900243840,-161.56,0.00024102,2]
[312460411,1705900243850,-179.52,0.00024297,2]
[312460412,1705900243861,-151.0,0.00024297,7]
[312460413,1705900243870,-151.0,0.00024297,7]
[312460414,1705900243880,-151.0,0.00024297,7]
[312460415,1705900243890,-171.29,0.00024297,2]
[312460416,1705900243899,-506.44,0.00024302,2]
[312460417,1705900243909,-32862.0,0.000244,2]
[312460418,1705900243919,-151.0,0.000244,7]
[312460419,1705900243928,-154.71154,0.000244,7]
[312460420,1705900243938,-338.735053,0.000244,7]
[312460421,1705900243947,-338.735053,0.000244,7]
[312460422,1705900243956,-151.0,0.000244,7]
[312460423,1705900243966,-3109.0,0.000244,2]
[312460424,1705900243975,-151.0,0.000244,7]